Cogmind - Beta 12 @@@ ROGUE MODE // 2023.04.12 @ 23:03:05 Player: Zellbot Result: Destroyed by G-47 Trooper with Particle Gun Performance ------------- Evolutions (3) 1500 Regions Visited (7) 1400 Robots Destroyed (16) 80 Value Destroyed (605) 605 Prototype IDs (24) 480 Alien Tech Used (0) 0 Bonus (543) 543 TOTAL SCORE: 4608 Bonus ------- Follower Combat Kills 56 Entered Garrisons 200 Aligned with FarCom 300 Friendly Fire -13 Cogmind --------- Core Integrity 0/700 Matter 280/300 Energy 25/100 System Corruption 0% Temperature Hot (273) Movement Core (50) Location -7/Garrison Parts ------- > --- POWER (2) -------- (None) > --- PROPULSION (4) --- (None) > --- UTILITY (5) ------ (None) > --- WEAPON (2) ------- (None) > --- INVENTORY (5) ---- Flight Unit Compact Matter Pod (150) Cloak of Protection Remote Datajack Signal Generator Peak State ------------ > --- POWER ------------ Light Ion Engine Light Deuterium Engine > --- PROPULSION ------- Light Treads Medium Treads Medium Treads Medium Treads > --- UTILITY ---------- Small Storage Unit Weapon Shielding Improved Light Armor Plating Reactive Plating > --- WEAPON ----------- Gatling Laser Gatling Laser > --- INVENTORY -------- Ion Engine Flight Unit Compact Matter Pod Cloak of Protection Gatling Laser Gatling Laser Remote Datajack Signal Generator [Rating: 36] Favorites ----------- Power Light Ion Engine Engine Light Ion Engine Propulsion Medium Treads Treads Medium Treads Leg Aluminum Leg Wheel Wheel Flight Unit Flight Unit Utility Small Storage Unit Device Experimental Sensor Array Storage Small Storage Unit Processor Targeting Computer Protection Reactive Plating Weapon Medium Laser Energy Gun Medium Laser Build | -11 -10 -10 -10 -9 -8 -7 -7 ------- Run | Jun Mat Min Exi Min Mat Fac Gar Slots Evolved 6 | . . . . . 4 2 . Power 1 | . . . . . 1 . . Propulsion 2 | . . . . . 2 . . Utility 3 | . . . . . 1 2 . Weapon . | . . . . . . . . Parts Attached 28 | 6 3 1 . 4 8 3 3 Power 4 | 1 . . . 1 1 . 1 Engine 4 | 1 . . . 1 1 . 1 Core . | . . . . . . . . Reactor . | . . . . . . . . Propulsion 11 | 2 1 1 . 2 4 1 . Treads 5 | . . . . . 4 1 . Leg 1 | . . 1 . . . . . Wheel 3 | 2 1 . . . . . . Hover . | . . . . . . . . Flight 2 | . . . . 2 . . . Utility 6 | 1 1 . . 1 1 2 . Device 1 | . . . . 1 . . . Storage 1 | 1 . . . . . . . Processor 1 | . 1 . . . . . . Hackware . | . . . . . . . . Protection 3 | . . . . . 1 2 . Artifact . | . . . . . . . . Weapon 7 | 2 1 . . . 2 . 2 Energy Gun 7 | 2 1 . . . 2 . 2 Energy Cannon . | . . . . . . . . Ballistic Gun . | . . . . . . . . Ballistic Cannon . | . . . . . . . . Launcher . | . . . . . . . . Special Weapon . | . . . . . . . . Impact Weapon . | . . . . . . . . Slashing Weapon . | . . . . . . . . Piercing Weapon . | . . . . . . . . Special Melee Weapon . | . . . . . . . . Unidentified Prototypes 1 | . . . . 1 . . . Parts Lost 15 | . . 3 . . . . 12 Power 3 | . . 1 . . . . 2 Propulsion 5 | . . 2 . . . . 3 Utility 3 | . . . . . . . 3 Weapon 4 | . . . . . . . 4 Highest Loss Streak 12 | . . 2 . . . . 12 To Critical Strikes . | . . . . . . . . Average Slot Usage (%) 80 | . 91 88 71 63 77 80 81 Engine 11 | . 14 10 . 8 14 15 12 Treads 13 | . . . . . 30 27 25 Leg 2 | . . 3 14 5 . . . Wheel 6 | . 28 17 . . . . . Flight 1 | . . . . 17 1 . . Storage 11 | . 14 14 14 14 9 7 7 Processor 6 | . 5 14 14 6 . . . Protection 5 | . . . . . 6 14 20 Energy Gun 20 | . 28 28 28 10 16 15 15 Naked Turns 3 | . . . . . . . 3 Heaviest Build 35 | 14 14 14 9 9 31 35 35 Greatest Support 112 | 20 20 20 10 10 112 104 104 Greatest Overweight (x) 2 | . 1 2 . . . . . Average Overweight (x) . | . . . . . . . . Largest Inventory Capacity 8 | 8 8 8 8 8 8 8 8 Average Capacity 7 | 6 8 8 8 8 8 8 7 Most Carried 8 | 1 3 4 5 8 8 8 8 Average Carried 5 | . 2 3 4 7 7 7 7 Final Capacity 8 | 8 8 8 8 8 8 8 5 Final Carried 8 | 1 3 4 5 8 7 8 5 Class Distribution -------------------- 100% | Mutant Dominant Class ---------------- Mutant | -10/Materials Mutant | -10/Mines Mutant | -10/Exiles Mutant | -9/Mines Mutant | -8/Materials Mutant | -7/Factory Mutant | -7/Garrison Resources | -11 -10 -10 -10 -9 -8 -7 -7 ----------- Run | Jun Mat Min Exi Min Mat Fac Gar Matter Collected 831 | 139 99 314 . . 120 84 75 Remotely . | . . . . . . . . Salvage Created 594 | . 99 66 . 17 176 95 141 Parts 19 | . 3 1 . 2 4 6 3 Haulers Intercepted . | . . . . . . . . Recyclers Shooed . | . . . . . . . . Parts Field Recycled . | . . . . . . . . Retrieved Matter . | . . . . . . . . Parts Self-Destructed . | . . . . . . . . Prevented . | . . . . . . . . Kills | -11 -10 -10 -10 -9 -8 -7 -7 ------- Run | Jun Mat Min Exi Min Mat Fac Gar Combat Hostiles Destroyed 14 | . 2 2 . 1 3 2 4 Guns 13 | . 1 2 . 1 3 2 4 Classes Destroyed 7 | . 1 2 . 1 2 1 . Worker 1 | . . 1 . . . . . Watcher 1 | . . . . . 1 . . Swarmer 3 | . . . . 1 . . 2 Grunt 7 | . 2 1 . . 2 . 2 Sentry 2 | . . . . . 1 1 . Demolisher 1 | . . 1 . . . . . Programmer 1 | . . . . . . 1 . Best Kill Streak 2 | . 2 1 . 1 2 1 2 Combat Bots Only 2 | . 2 1 . 1 2 1 2 Max Kills in Single Turn 2 | . 1 1 . 1 1 1 2 Gunslinging . | . . . . . . . . Exploded . | . . . . . . . . Melee . | . . . . . . . . Uniques/NPCs Destroyed . | . . . . . . . . Combat | -11 -10 -10 -10 -9 -8 -7 -7 -------- Run | Jun Mat Min Exi Min Mat Fac Gar Damage Taken 2714 | . 164 181 . 33 138 61 2137 Core 853 | . 33 91 . 15 . 14 700 Absorbed by Shields 41 | . . . . . . . 41 Redirected to Shielding 51 | . . . . . . . 51 Core Remaining (%) 81 | 100 . . . 44 100 . . Volleys Fired 44 | . 12 8 . 2 8 3 11 Largest 2 | . 2 2 . 2 2 2 2 Hottest 160 | . 100 100 . 100 160 160 160 Shots Fired 79 | . 17 16 . 4 16 6 20 Gun 79 | . 17 16 . 4 16 6 20 Cannon . | . . . . . . . . Launcher . | . . . . . . . . Special . | . . . . . . . . Kinetic . | . . . . . . . . Thermal 79 | . 17 16 . 4 16 6 20 Explosive . | . . . . . . . . Electromagnetic . | . . . . . . . . Robot Hit Streak 13 | . 9 13 . 1 8 7 12 Robot Miss Streak 5 | . 1 1 . 3 3 3 5 Penetration Max . | . . . . . . . . Secondary Targets . | . . . . . . . . Shots Hit Robots 64 | . 14 13 . 1 14 6 16 Core Hits 37 | . 4 6 . 1 10 7 9 Critical Kills . | . . . . . . . . Critical Parts Destroyed . | . . . . . . . . Critical Strikes 2 | . 1 1 . . . . . Burn 2 | . 1 1 . . . . . Melee Attacks . | . . . . . . . . Impact . | . . . . . . . . Slashing . | . . . . . . . . Piercing . | . . . . . . . . Sneak Attacks . | . . . . . . . . Combat Hostiles . | . . . . . . . . Follow-up Attacks . | . . . . . . . . Damage Inflicted 1131 | . 171 167 . 26 279 137 351 Guns 1126 | . 171 162 . 26 279 137 351 Cannons . | . . . . . . . . Explosions . | . . . . . . . . Melee . | . . . . . . . . Ramming 5 | . . 5 . . . . . Kinetic . | . . . . . . . . Thermal 1126 | . 171 162 . 26 279 137 351 Explosive . | . . . . . . . . Electromagnetic . | . . . . . . . . Impact . | . . . . . . . . Slashing . | . . . . . . . . Piercing . | . . . . . . . . Highest Corruption . | . . . . . . . . Average Corruption . | . . . . . . . . Corruption Purged . | . . . . . . . . Corruption Blocked . | . . . . . . . . Overload Shots . | . . . . . . . . Overflow Damage . | . . . . . . . . Projectiles . | . . . . . . . . Explosions . | . . . . . . . . Melee . | . . . . . . . . Knockbacks . | . . . . . . . . Impact . | . . . . . . . . Kinetic . | . . . . . . . . Secondary . | . . . . . . . . Self-Inflicted Damage . | . . . . . . . . Shots . | . . . . . . . . Rammed . | . . . . . . . . Targets Rammed 1 | . . 1 . . . . . Kicked 1 | . . 1 . . . . . Crushed . | . . . . . . . . Highest Temperature 491 | . 352 238 . 48 491 206 470 Average Temperature 174 | . 203 94 . 27 168 90 242 Received Heat Transfer 766 | . 93 78 . . 72 . 523 Effects 13 | . 1 . . . 7 . 5 Shutdowns 5 | . . . . . 3 . 2 Interference 3 | . 1 . . . 2 . . Matter Decay 2 | . . . . . 1 . 1 Short Circuit 2 | . . . . . 1 . 1 Damage (minor) 1 | . . . . . . . 1 Siege Activations . | . . . . . . . . Robots Corrupted . | . . . . . . . . Combat Hostiles . | . . . . . . . . Parts Fried . | . . . . . . . . Impact Corruptions . | . . . . . . . . Robots Melted 1 | . 1 . . . . . . Combat Hostiles 1 | . 1 . . . . . . Parts Melted 9 | . 3 1 . . 1 2 2 Heat Transferred 2921 | . 592 555 . 74 625 275 800 Parts Sabotaged . | . . . . . . . . Parts Stolen . | . . . . . . . . Parts Stripped . | . . . . . . . . Power Chain Reactions . | . . . . . . . . Missiles Intercepted . | . . . . . . . . Alert | -11 -10 -10 -10 -9 -8 -7 -7 ------- Run | Jun Mat Min Exi Min Mat Fac Gar Peak Influence 169 | . 50 48 . 135 169 89 122 Initial 62 | . . 19 . . 52 . 62 Average 55 | . 32 30 . 119 82 38 77 Maximum Alert Level . | . . . . . . . . Low Security (%) 100 | 100 100 100 . 100 100 100 100 Level 1 . | . . . . . . . . Level 2 . | . . . . . . . . Level 3 . | . . . . . . . . Level 4 . | . . . . . . . . Level 5 . | . . . . . . . . High Security . | . . . . . . . . Max Security . | . . . . . . . . Squads Dispatched 1 | . . . . . 1 . . Investigation . | . . . . . . . . Extermination . | . . . . . . . . Reinforcement 1 | . . . . . 1 . . Assault . | . . . . . . . . Garrison . | . . . . . . . . Intercept . | . . . . . . . . Searches Triggered . | . . . . . . . . Construction Impeded . | . . . . . . . . Haulers Reinforced . | . . . . . . . . Active Scanning Responses . | . . . . . . . . Cargo Convoy Interrupts . | . . . . . . . . Stealth | -11 -10 -10 -10 -9 -8 -7 -7 --------- Run | Jun Mat Min Exi Min Mat Fac Gar Distress Signals . | . . . . . . . . Communications Jammed . | . . . . . . . . Distress Signals . | . . . . . . . . Times Spotted 51 | . 2 19 . 7 7 2 14 Peak Tracking Total 19 | . 2 19 . 4 3 1 11 Tactical Retreats 1 | . . . . 1 . . . Traps | -11 -10 -10 -10 -9 -8 -7 -7 ------- Run | Jun Mat Min Exi Min Mat Fac Gar Traps Triggered 2 | . 1 . . . . . 1 Indirectly . | . . . . . . . . Trap Hack Attempts . | . . . . . . . . Triggered . | . . . . . . . . Disarmed . | . . . . . . . . Reprogrammed . | . . . . . . . . Reused . | . . . . . . . . Traps Extracted . | . . . . . . . . Installed . | . . . . . . . . Triggered . | . . . . . . . . Machines | -11 -10 -10 -10 -9 -8 -7 -7 ---------- Run | Jun Mat Min Exi Min Mat Fac Gar Machines Disabled . | . . . . . . . . Max in Single Turn . | . . . . . . . . Machines Repaired . | . . . . . . . . Machines Sabotaged . | . . . . . . . . Overloaded Fab Kills . | . . . . . . . . Hacking | -11 -10 -10 -10 -9 -8 -7 -7 --------- Run | Jun Mat Min Exi Min Mat Fac Gar Machines Accessed 2 | . . . 1 . . 1 . Terminals . | . . . . . . . . Fabricators . | . . . . . . . . Repair Stations . | . . . . . . . . Recycling Units . | . . . . . . . . Scanalyzers . | . . . . . . . . Garrison Access 1 | . . . . . . 1 . Total Hacks 2 | . . . 1 . . 1 . Successful 2 | . . . 1 . . 1 . Failed . | . . . . . . . . Catastrophic . | . . . . . . . . Database Lockouts . | . . . . . . . . Manual 1 | . . . 1 . . . . Terminals . | . . . . . . . . Fabricators . | . . . . . . . . Repair Stations . | . . . . . . . . Recycling Units . | . . . . . . . . Scanalyzers . | . . . . . . . . Garrison Access 1 | . . . . . . 1 . Terminal Hacks 1 | . . . 1 . . . . EX-Prototype ID Bank 1 | . . . 1 . . . . Fabricator Hacks . | . . . . . . . . Repair Station Hacks . | . . . . . . . . Recycling Unit Hacks . | . . . . . . . . Scanalyzer . | . . . . . . . . Garrison Access Hacks 1 | . . . . . . 1 . Unlock Access 1 | . . . . . . 1 . Unauthorized Hacks . | . . . . . . . . Terminals . | . . . . . . . . Fabricators . | . . . . . . . . Repair Stations . | . . . . . . . . Recycling Units . | . . . . . . . . Scanalyzers . | . . . . . . . . Garrison Access . | . . . . . . . . Data Cores Recovered . | . . . . . . . . Used . | . . . . . . . . Hacking Detections 1 | . . . . . . 1 . Full Trace Events . | . . . . . . . . Feedback Events . | . . . . . . . . Feedback Blocked . | . . . . . . . . Robot Schematics Acquired . | . . . . . . . . Robots Built . | . . . . . . . . Authchips . | . . . . . . . . Time . | . . . . . . . . Total Robot Build Rating . | . . . . . . . . Part Schematics Acquired . | . . . . . . . . Parts Built . | . . . . . . . . Authchips . | . . . . . . . . Time . | . . . . . . . . Total Part Build Rating . | . . . . . . . . Parts Repaired . | . . . . . . . . Time . | . . . . . . . . Parts Recycled . | . . . . . . . . Recycled Matter . | . . . . . . . . Retrieved Matter . | . . . . . . . . Retrieved Components . | . . . . . . . . Parts Scanalyzed . | . . . . . . . . Part Schematics Acquired . | . . . . . . . . Parts Damaged . | . . . . . . . . Bothacking | -11 -10 -10 -10 -9 -8 -7 -7 ------------ Run | Jun Mat Min Exi Min Mat Fac Gar Used RIF Installer . | . . . . . . . . Robots Hacked . | . . . . . . . . Non-combat . | . . . . . . . . Combat . | . . . . . . . . Robot Hacks Applied . | . . . . . . . . Relay Couplers Released . | . . . . . . . . Fabnet Peak Effective % . | . . . . . . . . Robots Rewired . | . . . . . . . . Allies Hacked . | . . . . . . . . Hacks Repelled . | . . . . . . . . Allies | -11 -10 -10 -10 -9 -8 -7 -7 -------- Run | Jun Mat Min Exi Min Mat Fac Gar Total Allies 4 | . . 4 . . . . . Largest Group 4 | . . 4 2 1 . . . Highest-Rated Group 104 | . . 104 62 31 . . . Highest-Rated Ally 31 | . . 31 31 31 . . . Total Orders . | . . . . . . . . Ally Attacks 16 | . . 8 . 8 . . . Total Damage 231 | . . 86 . 145 . . . Kills 4 | . . 1 . 3 . . . Allies Corrupted . | . . . . . . . . Allies Melted . | . . . . . . . . Intel | -11 -10 -10 -10 -9 -8 -7 -7 ------- Run | Jun Mat Min Exi Min Mat Fac Gar Robot Analysis Total . | . . . . . . . . Derelict Logs Recovered 2 | . . 1 . 1 . . . Drone Launches . | . . . . . . . . Drone Recoveries . | . . . . . . . . Exploration | -11 -10 -10 -10 -9 -8 -7 -7 ------------- Run | Jun Mat Min Exi Min Mat Fac Gar Turns Passed 2168 | 40 173 549 256 159 481 373 137 Spaces Moved 1863 | 38 164 563 213 303 318 212 52 Core 8 | 1 . 2 . . . . 5 Treads 512 | . . . . . 253 212 47 Legs 344 | . . 95 213 36 . . . Wheels 667 | 37 164 466 . . . . . Hover . | . . . . . . . . Flight 332 | . . . . 267 65 . . Fastest Speed 37 | 50 80 80 120 37 37 160 50 Average Speed 102 | 79 80 90 120 46 134 160 149 Slowest Speed 160 | 80 95 150 120 120 160 160 160 Overloaded Moves . | . . . . . . . . Propulsion Burnouts . | . . . . . . . . Robots Hopped . | . . . . . . . . Cave-ins Triggered . | . . . . . . . . Exploration Rate (%) 38 | 3 37 96 60 59 26 5 20 Regions Visited 7 Branch Regions 3 Pre-discovered Areas . | . . . . . . . . Known Exits Taken 2 | . . . . . 1 1 . Unknown Exits Taken 5 | 1 1 1 1 1 . . . Scrap Searched 2 | . . 1 . 1 . . . Spaces Dug . | . . . . . . . . Terrain Destroyed . | . . . . . . . . Melee . | . . . . . . . . Projectile . | . . . . . . . . AOE . | . . . . . . . . Terrain Rammed . | . . . . . . . . Walls Destroyed . | . . . . . . . . Machines Disabled . | . . . . . . . . Actions | -11 -10 -10 -10 -9 -8 -7 -7 --------- Run | Jun Mat Min Exi Min Mat Fac Gar Total 2020 | 45 186 584 213 317 350 237 88 Wait 62 | . 6 9 . . 9 19 19 Move 1856 | 37 163 562 212 302 317 211 52 Hop . | . . . . . . . . Pick Up 14 | 2 2 2 1 4 2 1 . Fast Attach 21 | 5 3 1 . 1 8 3 . Attach 6 | 1 . . . 2 . . 3 Detach 2 | . . . . 2 . . . Swap 1 | . . . . 1 . . . Drop 13 | . . 1 . 3 6 . 3 Fire 44 | . 12 8 . 2 8 3 11 Melee . | . . . . . . . . Ram . | . . . . . . . . Kick 1 | . . 1 . . . . . Crush . | . . . . . . . . Escape Stasis . | . . . . . . . . Rewire . | . . . . . . . . Trap . | . . . . . . . . Miscellaneous . | . . . . . . . . Route ------- -11/Junkyard -10/Materials -10/Mines (discovered 3 exits: [*Mat x2] / *Exi) -10/Exiles -9/Mines -8/Materials (discovered 3 exits: *Fac x2 / Sto) -7/Factory -7/Garrison History --------- Turn | Location | Event 6 | -11/Junkyard | Discovered new exit (range 15) 41 | -11/Junkyard | Entered Materials 154 | -10/Materials | Discovered new exit (range 6) 214 | -10/Materials | Entered Mines 225 | -10/Mines | Learned location of 1 exit from Materials 275 | -10/Mines | Received a Mining Laser from a helpful Derelict 302 | -10/Mines | Build established: Mutant 320 | -10/Mines | Assembled infested the area 381 | -10/Mines | Met a Derelict testing a Signal Generator 385 | -10/Mines | Found Signal Generator 398 | -10/Mines | Found a hidden stash of uninstalled traps 413 | -10/Mines | Discovered new exit (range 9) 551 | -10/Mines | Discovered new exit (range 8) 757 | -10/Mines | Deemed a non-threat by the Exiles lab entrance 757 | -10/Mines | Discovered new exit (range 5) 763 | -10/Mines | Entered Exiles 763 | -10/Exiles | Accompanied by 2 allies 793 | -10/Exiles | Led the pair of lost Derelicts to a safe place 795 | -10/Exiles | Met 8R-AWN 814 | -10/Exiles | Met EX-HEX 851 | -10/Exiles | Met EX-BIN 864 | -10/Exiles | Aligned with FarCom system 865 | -10/Exiles | Given EX-Vault access code 894 | -10/Exiles | Opened EX-Vault 904 | -10/Exiles | Found Cloak of Protection 930 | -10/Exiles | Warned to stay clear of 0b10 Research branches 964 | -10/Exiles | Met EX-DEC 1007 | -10/Exiles | Discovered new exit (range 11) 1019 | -10/Exiles | Left Exiles lab with Cloak of Protection 1019 | -10/Exiles | Entered Mines 1019 | -9/Mines | Accompanied by 1 ally 1022 | -9/Mines | Core integrity fell below 50% 1080 | -9/Mines | Found a damaged Exp. Sensor Array with a note attached 1081 | -9/Mines | Found Prototype Device 1081 | -9/Mines | Identified Exp. Sensor Array 1121 | -9/Mines | Discovered new exit (range 15) 1150 | -9/Mines | Learned location of 1 exit from Materials 1178 | -9/Mines | Entered Materials 1178 | -8/Materials | Evolved 4 slots: Power x1, Propulsion x2, Utility x1 1179 | -8/Materials | Identified exit to Storage 1179 | -8/Materials | Identified exit to Factory 1616 | -8/Materials | Discovered exit to Factory (range 5) 1659 | -8/Materials | Entered Factory 1659 | -7/Factory | Evolved 2 slots: Utility x2 2030 | -7/Factory | Identified exit to Garrison 2032 | -7/Factory | Entered Garrison 2080 | -7/Garrison | Triggered checkpoint 2158 | -7/Garrison | Core integrity fell below 50% 2164 | -7/Garrison | Core integrity fell below 20% 2169 | -7/Garrison | Destroyed by G-47 Trooper with Particle Gun Last Messages --------------- 02148_ Field strength at 40. 02148_ S-27 Virus destroyed. 02149_ Slug penetrates Wall. 02151_ Reactive Plating destroyed. 02151_ Stasis field depleted. 02152_ Med. Treads destroyed. 02152_ Slug penetrates Wall. 02153_ Weapon Shielding destroyed. 02153_ Gatling Laser destroyed. 02154_ Med. Treads destroyed. 02155_ Gatling Laser destroyed. 02161_ Slug penetrates Wall. 02162_ Gatling Laser destroyed. 02163_ Overheating: Gatling Laser damaged (-15). 02163_ Gatling Laser destroyed. 02164_ G-47 Trooper heat short circuits Aluminum Leg. 02164_ Slug penetrates Wall. 02165_ Dropped Ion Engine. 02166_ Dropped Sml. Storage Unit. 02166_ Critical hit (Burn: +37). Map ----- +----------------------------------------------------+ | ?????????????????????????????????????????????????? | | ?????????????????????????????????????????????????? | | ?????????????????????????????????????????????????? | | ###??????????????????????????????????????????????? | | #??????????????????????????????????????????????? | | #??????????????????????????????????????????????? | | #??????????????????????????????????????????????? | | #??????????????????????????????????????????????? | | #??????????????????????????????????????????????? | | #??????????????????????????????????????????????? | | #??????????????????????????????????????????????? | | #??????????????????????????????????????????????? | | ##############?????????????????????????????????? | | #?????????????????????????????????? | | #?????????????????????????????????? | | ############# #?????????????????????????????????? | | ????????????# #?????????????????????????????????? | | ????????????# #?????????????????????????????????? | | ????????????# #?????????????????????????????????? | | ????????????# #?????????????????????????????????? | | ????????????# #######???????????????????????????? | | ????????????# ## =% #???????????????????????????? | | ???????????## ##[ ########### #### ?????????? | | ???????????# #????????? | | ???????????# h #????????? | | ???????????# sg @ #????????? | | ???????????# ## ssg## ##########?????????????? | | ???????????# ##^ *## ###????????????????????? | | ?????????#" % s #????????????????????? | | ?????????#%" %= #????????????????????? | | ?????????#" * #????????????????????? | | ?????????# #????????????????????? | | ?????????### ## ## ###????????????????????? | | ???????????# ?# ##^^ #??????????????????????? | | ???????????# ??????????????????????? | | ???????????# Y ?????????????????????? | | ???????????# Y ###????????????????????? | | ???????????## ## ## ##??????????????????????? | | ????????????# ?# ## #???????????????????????? | | ????????????# ??#####?# #???????????????????????? | | ????????????#?????????? #???????????????????????? | | ??????????????????????? #???????????????????????? | | ??????????????????????? #???????????????????????? | | ???????????????????????? ????????????????????????? | | ?????????????????????????????????????????????????? | | ?????????????????????????????????????????????????? | | ?????????????????????????????????????????????????? | | ?????????????????????????????????????????????????? | | ?????????????????????????????????????????????????? | | ?????????????????????????????????????????????????? | +----------------------------------------------------+ Best States ------------- Heat Dissipation 34 Energy Generation 19 Energy Capacity 250 Matter Stores 300 Matter Capacity 300 Sight Range 16 Terrain Scan Density 10 Armor Coverage 300 Resistance: KI 20 Weapon Shielding 33 Evasion (%) 62 Targeting Accuracy 5 Recoil Reduction 4 Item Schematics ----------------- None Robot Schematics ------------------ None Fabricated ------------ Nothing Alien Tech Used ----------------- None Achievements -------------- None Challenges ------------ None Game ------ Seed MiningNovaConstruct Manual? 0 Play Time 00:19:19 Cumulative 31.3 hours Start 2023.04.09 @ 18:16:36 End 2023.04.12 @ 23:03:05 Sessions 3 Manual Loads 0 Difficulty Rogue Special Mode None Game No. 29 Rogue 29 Adventurer 0 Explorer 0 Win Type - Total 0 Types 0/0/0/0/0/0/0/0/0 Lore% 20 Gallery% 37 Achievement% 32 Wizard Run 0 Options --------- ASCII 0 Keyboard 0 Movement Mouse Keybinds 0 Fullscreen 1 Font 18/SmallcapsGlow Map View 76x50 Tactical HUD 1 Map Filters NONE Filters NONE Steam 1 RUN: 041d80cb-13e1-45ab-b6fd-26f2a169684f